Cogmind - Beta 17.1 @@@ ROGUE MODE // 2026.09.10 @ 17:28:57 Player: naththebg Result: Self-destructed Performance ------------- Evolutions (1) 500 Regions Visited (3) 600 Robots Destroyed (31) 155 Value Destroyed (699) 699 Prototype IDs (4) 80 Alien Tech Used (0) 0 Bonus (10752) 10752 TOTAL SCORE: 12786 Bonus ------- High Alert Combat Kills 19 Follower Combat Kills 83 Prayed to X0-1V1 5000 Major X0-1V1 Interference 5650 Cogmind --------- Core Integrity 400/400 Matter 98/150 Energy 1080/1080 System Corruption 0% Temperature Cool (0) Movement Treading (160) Location -9/Materials Parts ------- > --- POWER (1) -------- Cooled Ion Engine (fused) > --- PROPULSION (2) --- Light Treads Light Treads > --- UTILITY (3) ------ Large Storage Unit Light Armor Plating > --- WEAPON (3) ------- Beam Rifle Assault Rifle Light Cannon > --- INVENTORY (15) --- Light Ion Engine Light Nuclear Core Improved Treads Wheel Compact Wheel Heat Sink Small Storage Unit Light Armor Plating Medium Laser Medium Laser Shotgun Shotgun Peak State ------------ > --- POWER ------------ Ion Engine > --- PROPULSION ------- Light Treads Light Treads > --- UTILITY ---------- Large Storage Unit X0-1V1's Piety Tracker > --- WEAPON ----------- Assault Rifle Assault Rifle > --- INVENTORY -------- Light Ion Engine Light Treads Light Treads Aluminum Leg Wheel Compact Wheel Heat Sink Small Storage Unit Seismic Detector Light Armor Plating Light Armor Plating Medium Laser Medium Laser Medium Laser Assault Rifle [Rating: 20] Favorites ----------- Power Ion Engine Engine Ion Engine Power Core Light Nuclear Core Propulsion Light Treads Treads Light Treads Utility Large Storage Unit Device Seismic Detector Storage Large Storage Unit Protection Light Armor Plating Weapon Assault Rifle Energy Gun Beam Rifle Ballistic Gun Assault Rifle Ballistic Cannon Light Cannon Impact Weapon Flail Build | -11 -10 -10 -9 ------- Run | Yrd Mat Min Mat Slots Evolved 2 | . . . 2 Power . | . . . . Propulsion . | . . . . Utility 1 | . . . 1 Weapon 1 | . . . 1 Parts Attached 20 | 7 9 2 2 Power 3 | 1 1 1 . Engine 2 | 1 . 1 . Core 1 | . 1 . . Reactor . | . . . . Propulsion 4 | 2 2 . . Treads 4 | 2 2 . . Leg . | . . . . Wheel . | . . . . Hover . | . . . . Flight . | . . . . Utility 8 | 2 5 . 1 Device 4 | 1 3 . . Storage 2 | 1 1 . . Processor . | . . . . Hackware . | . . . . Protection 2 | . 1 . 1 Artifact . | . . . . Weapon 5 | 2 1 1 1 Energy Gun 1 | . . . 1 Energy Cannon . | . . . . Ballistic Gun 3 | 2 1 . . Ballistic Cannon 1 | . . 1 . Launcher . | . . . . Special Weapon . | . . . . Impact Weapon . | . . . . Slashing Weapon . | . . . . Piercing Weapon . | . . . . Special Melee Weapon . | . . . . Unidentified Prototypes 1 | . 1 . . Corrupted Parts 1 | . 1 . . System Corruption 8 | . 8 . . Parts Lost 5 | . 4 1 . Power . | . . . . Propulsion 2 | . 2 . . Utility 2 | . 1 1 . Weapon 1 | . 1 . . Highest Loss Streak 2 | . 2 1 . To Critical Strikes . | . . . . Average Backups 11 | 3 12 13 12 Power 1 | . 1 1 2 Propulsion 3 | 2 4 3 3 Utility 3 | . 3 4 3 Weapon 3 | . 3 4 4 Tool/Special . | . . . . Unused Backups 16 | . 4 2 10 Power 1 | . . . 1 Propulsion 5 | . 1 1 3 Utility 2 | . . . 2 Weapon 8 | . 3 1 4 Tool/Special . | . . . . Average Slot Usage (%) 99 | . 99 99 84 Engine 9 | . 9 11 11 Core 4 | . 4 2 . Treads 27 | . 27 27 22 Device 12 | . 12 13 . Storage 13 | . 14 14 11 Protection 1 | . 1 . 11 Ballistic Gun 25 | . 27 17 11 Ballistic Cannon 1 | . . 10 11 Peak Build Rating 20 | 7 20 13 12 Average Rating 9 | 5 9 12 11 On Entrance 7 | . 7 12 10 Avg Prop Armor Cover (%) . | . . . . Naked Turns . | . . . . Heaviest Build 39 | 15 32 34 39 Greatest Support 40 | 40 40 40 40 Greatest Overweight (x) . | . . . . Average Overweight (x) . | . . . . Largest Inventory Capacity 15 | 8 15 15 15 Average Capacity 14 | 7 14 15 15 Most Carried 15 | 6 15 15 13 Average Carried 11 | 4 12 13 12 Final Capacity 15 | 8 15 15 15 Final Carried 14 | 6 12 14 12 Class Distribution -------------------- 78% | Mutant 21% | Scavenger-Mutant Dominant Class ---------------- Mutant | -10/Materials Mutant | -10/Mines Mutant | -9/Materials Resources | -11 -10 -10 -9 ----------- Run | Yrd Mat Min Mat Matter Collected 1043 | 330 567 146 . Remotely . | . . . . Salvage Created 1077 | 179 671 227 . Parts 71 | 12 43 16 . Haulers Intercepted 1 | . 1 . . Recyclers Shooed 5 | 1 4 . . Parts Field Recycled . | . . . . Retrieved Matter . | . . . . Parts Self-Destructed . | . . . . Prevented . | . . . . Parts Restored . | . . . . Kills | -11 -10 -10 -9 ------- Run | Yrd Mat Min Mat Combat Hostiles Destroyed 21 | . 16 5 . Guns 17 | . 16 1 . Cannons 4 | . . 4 . Classes Destroyed 10 | 2 7 1 . Builder 1 | . 1 . . Tunneler 4 | 3 . 1 . Hauler 1 | . 1 . . Recycler 2 | 1 1 . . Operator 1 | . 1 . . Watcher 1 | . 1 . . Swarmer 8 | . 8 . . Grunt 9 | . 7 2 . Sentry 3 | . . 3 . Subdweller 1 | . 1 . . Best Kill Streak 5 | 4 5 3 . Combat Bots Only 4 | . 4 2 . Max Kills in Single Turn 2 | 2 2 1 . Gunslinging 1 | . 1 . . Exploded . | . . . . Melee . | . . . . Uniques/NPCs Destroyed . | . . . . Combat | -11 -10 -10 -9 -------- Run | Yrd Mat Min Mat Hostile Shots Fired 136 | . 112 24 . Missed 34 | . 28 6 . Hits 102 | . 84 18 . Projectile 102 | . 84 18 . Critical Strikes 4 | . 3 1 . Damage Taken 1112 | . 873 239 . Core 171 | . 138 33 . Absorbed by Shields . | . . . . Core Remaining (%) 93 | 100 . 86 . Volleys Fired 95 | 10 62 23 . Largest 2 | 2 2 2 . Hottest 50 | 40 40 50 . Shots Fired 186 | 20 124 42 . Gun 163 | 20 124 19 . Cannon 23 | . . 23 . Launcher . | . . . . Special . | . . . . Kinetic 186 | 20 124 42 . Thermal . | . . . . Explosive . | . . . . Electromagnetic . | . . . . Robot Hit Streak 12 | 4 12 9 . Robot Miss Streak 5 | 2 5 3 . Penetration Max . | . . . . Secondary Targets 3 | . 3 . . Max Gunslinging Chain 1 | . 1 . . Shots Hit Robots 111 | 10 75 26 . Core Hits 49 | 5 33 11 . Critical Kills . | . . . . Critical Parts Destroyed . | . . . . Critical Strikes 4 | . . 4 . Blast 4 | . . 4 . Melee Attacks . | . . . . Impact . | . . . . Slashing . | . . . . Piercing . | . . . . Sneak Attacks . | . . . . Combat Hostiles . | . . . . Follow-up Attacks . | . . . . Damage Inflicted 1536 | 148 955 433 . Guns 1197 | 148 934 115 . Cannons 318 | . . 318 . Explosions . | . . . . Melee . | . . . . Ramming 21 | . 21 . . Kinetic 1515 | 148 934 433 . Thermal . | . . . . Explosive . | . . . . Electromagnetic . | . . . . Impact . | . . . . Slashing . | . . . . Piercing . | . . . . Highest Corruption 8 | . 8 8 . Average Corruption 7 | . 8 4 . Corruption Purged . | . . . . Corruption Blocked . | . . . . Effects 15 | . 13 2 . Message Errors 2 | . 2 . . Matter Fused 3 | . 2 1 . Heat Flow Errors 4 | . 4 . . Energy Discharges 2 | . 2 . . Parts Fused 1 | . . 1 . Data Loss (minor) 2 | . 2 . . Data Loss (major) 1 | . 1 . . Overload Shots . | . . . . Overflow Damage . | . . . . Projectiles . | . . . . Explosions . | . . . . Melee . | . . . . Knockbacks . | . . . . Impact . | . . . . Kinetic . | . . . . Secondary . | . . . . Self-Inflicted Damage . | . . . . Shots . | . . . . Rammed 5 | . 5 . . Targets Rammed 5 | . 5 . . Kicked . | . . . . Crushed . | . . . . Highest Temperature 257 | . 257 12 . Average Temperature 99 | . 103 6 . Received Heat Transfer 324 | . 252 72 . Effects 1 | . 1 . . Energy Bleed 1 | . 1 . . Siege Activations . | . . . . Martial Activations . | . . . . Shielding Activations . | . . . . Robots Disrupted . | . . . . Combat Hostiles . | . . . . Robots Corrupted . | . . . . Combat Hostiles . | . . . . Parts Fried . | . . . . Impact Corruptions . | . . . . Robots Melted . | . . . . Combat Hostiles . | . . . . Parts Melted 2 | . 2 . . Heat Transferred . | . . . . Parts Sabotaged . | . . . . Parts Stolen . | . . . . Parts Stripped . | . . . . Power Chain Reactions . | . . . . Alert | -11 -10 -10 -9 ------- Run | Yrd Mat Min Mat Maximum Alert Level 3 | . 1 3 1 Low Security (%) 75 | 100 82 35 . Level 1 17 | . 17 22 100 Level 2 5 | . . 35 . Level 3 1 | . . 7 . Level 4 . | . . . . Level 5 . | . . . . High Security . | . . . . Max Security . | . . . . Peak Influence 792 | 20 235 792 304 Initial 304 | . . 64 304 Average 125 | 3 97 298 304 Influence Increases 1599 | 20 651 898 30 Destroy 0b10 Robot/C 460 | . 300 160 . Destroy 0b10 Robot/NC 50 | 20 25 5 . Destroy Leader 54 | . 44 10 . Allied During Kill 7 | . . 7 . Successful Hack 12 | . 12 . . Select Force Hacks 90 | . 60 . 30 Disable Machine 30 | . . 30 . Destroy Structure 2 | . 2 . . Lose Combat Pursuer 30 | . 30 . . Miscellaneous 864 | . 178 686 . Influence Decreases 1265 | 20 486 281 478 Entered New Map 579 | . . 101 478 Time Decay 636 | 20 446 170 . Lost Part 50 | . 40 10 . Squads Dispatched 8 | . 6 1 1 Investigation 6 | . 5 . 1 Extermination . | . . . . Reinforcement 1 | . 1 . . Assault 1 | . . 1 . Garrison . | . . . . Intercept . | . . . . Searches Triggered . | . . . . Construction Impeded . | . . . . Haulers Reinforced . | . . . . Active Scanning Responses . | . . . . Cargo Convoy Interrupts . | . . . . Stealth | -11 -10 -10 -9 --------- Run | Yrd Mat Min Mat Distress Signals 4 | . 4 . . Communications Jammed . | . . . . Distress Signals . | . . . . Times Spotted 42 | . 33 9 . Peak Tracking Total 4 | . 4 4 . Tactical Retreats 2 | . 2 . . Traps | -11 -10 -10 -9 ------- Run | Yrd Mat Min Mat Traps Triggered 2 | . 2 . . Indirectly . | . . . . Trap Hack Attempts . | . . . . Triggered . | . . . . Disarmed . | . . . . Reprogrammed . | . . . . Reused . | . . . . Traps Extracted . | . . . . Installed . | . . . . Triggered . | . . . . Machines | -11 -10 -10 -9 ---------- Run | Yrd Mat Min Mat Machines Disabled 2 | . . 2 . Max in Single Turn 1 | . . 1 . Machines Repaired . | . . . . Machines Dismantled . | . . . . Machines Sabotaged . | . . . . Overloaded Fab Kills . | . . . . Hacking | -11 -10 -10 -9 --------- Run | Yrd Mat Min Mat Machines Accessed 8 | . 7 . 1 Terminals 5 | . 5 . . Fabricators . | . . . . Repair Stations . | . . . . Recycling Units 3 | . 2 . 1 Scanalyzers . | . . . . Garrison Access . | . . . . Total Hacks 20 | . 19 . 1 Successful 11 | . 10 . 1 Failed 9 | . 9 . . Catastrophic . | . . . . Database Lockouts . | . . . . Manual 16 | . 15 . 1 Terminals 16 | . 16 . . Fabricators . | . . . . Repair Stations . | . . . . Recycling Units 4 | . 3 . 1 Scanalyzers . | . . . . Garrison Access . | . . . . Terminal Hacks 2 | . 2 . . Record 1 | . 1 . . Prototype ID Bank 1 | . 1 . . Fabricator Hacks . | . . . . Repair Station Hacks . | . . . . Recycling Unit Hacks . | . . . . Scanalyzer . | . . . . Garrison Access Hacks . | . . . . Unauthorized Hacks 9 | . 8 . 1 Terminals 6 | . 6 . . Botnet 1 | . 1 . . Skim 5 | . 5 . . Fabricators . | . . . . Repair Stations . | . . . . Recycling Units 3 | . 2 . 1 Tunnel 3 | . 2 . 1 Scanalyzers . | . . . . Garrison Access . | . . . . Data Cores Recovered 1 | . 1 . . Used . | . . . . Hacking Detections 4 | . 4 . . Full Trace Events . | . . . . Feedback Events . | . . . . Feedback Blocked . | . . . . Robot Schematics Acquired . | . . . . Robots Built . | . . . . Authchips . | . . . . Time . | . . . . Total Robot Build Rating . | . . . . Part Schematics Acquired . | . . . . Parts Built . | . . . . Authchips . | . . . . Time . | . . . . Total Part Build Rating . | . . . . Part Studies Acquired . | . . . . Parts Repaired . | . . . . Time . | . . . . Parts Recycled . | . . . . Recycled Matter . | . . . . Retrieved Matter . | . . . . Retrieved Components . | . . . . Parts Scanalyzed . | . . . . Part Schematics Acquired . | . . . . Parts Damaged . | . . . . Bothacking | -11 -10 -10 -9 ------------ Run | Yrd Mat Min Mat Used RIF Installer . | . . . . Robots Hacked . | . . . . Non-combat . | . . . . Combat . | . . . . Robot Hacks Applied . | . . . . Relay Couplers Released . | . . . . Fabnet Peak Effective % . | . . . . Robots Rewired . | . . . . Allies Hacked . | . . . . Hacks Repelled . | . . . . Allies | -11 -10 -10 -9 -------- Run | Yrd Mat Min Mat Total Allies 1 | . . 1 . Largest Group 1 | . . 1 1 Highest-Rated Group 31 | . . 31 31 Highest-Rated Ally 31 | . . 31 31 Total Orders . | . . . . Ally Attacks 13 | . . 13 . Total Damage 228 | . . 228 . Kills 3 | . . 3 . Allies Corrupted . | . . . . Allies Melted . | . . . . X0-1V1 Amusement Gains 19 | . 14 . 5 Average Entertainment 7 | . 8 5 13 Good Acts 21 | . 7 14 . Bad Acts 34 | . 18 16 . Intel | -11 -10 -10 -9 ------- Run | Yrd Mat Min Mat Active Infowar (turns) 975 | 33 942 . . Seismic 975 | 33 942 . . Robot Analysis Total . | . . . . Derelict Logs Recovered . | . . . . Drone Launches . | . . . . Drone Recoveries . | . . . . Exploration | -11 -10 -10 -9 ------------- Run | Yrd Mat Min Mat Turns Passed 2099 | 136 1609 340 14 Spaces Moved 884 | 61 652 164 7 Core 7 | 7 . . . Treads 877 | 54 652 164 7 Legs . | . . . . Wheels . | . . . . Hover . | . . . . Flight . | . . . . Fastest Speed 50 | 50 160 160 160 Average Speed 159 | 147 160 160 160 Slowest Speed 160 | 160 160 160 160 Overloaded Moves . | . . . . Propulsion Burnouts . | . . . . Robots Hopped . | . . . . Potential Cave-ins . | . . . . Cave-ins Triggered . | . . . . Exploration Rate (%) 33 | 3 94 34 3 Regions Visited 3 Branch Regions 1 Pre-discovered Areas 3 | . 2 . 1 Known Exits Taken 2 | . 1 1 . Unknown Exits Taken 1 | 1 . . . Scrap Searched 1 | . . 1 . Spaces Dug . | . . . . Terrain Destroyed . | . . . . Melee . | . . . . Projectile . | . . . . AOE . | . . . . Terrain Rammed . | . . . . Walls Destroyed . | . . . . Machines Disabled . | . . . . Actions | -11 -10 -10 -9 --------- Run | Yrd Mat Min Mat Total 1383 | 84 1089 201 9 Wait 347 | 1 342 4 . Move 881 | 60 651 163 7 Hop . | . . . . Pick Up 21 | 6 12 3 . Fast Attach 10 | 7 2 1 . Attach 6 | . 4 . 2 Detach . | . . . . Swap 9 | . 6 3 . Drop 9 | . 5 4 . Fire 95 | 10 62 23 . Melee . | . . . . Ram . | . . . . Kick . | . . . . Crush 5 | . 5 . . Escape Stasis . | . . . . Rewire . | . . . . Trap . | . . . . Miscellaneous . | . . . . Route ------- -11/Scrapyard -10/Materials (discovered 6 exits: *Mat x3 / *Min x2 / *Sub) -10/Mines (discovered 3 exits: *Mat x2 / Sub) -9/Materials (discovered 1 exit: Mat) History --------- Turn | Location | Event 4 | -11/Scrapyard | Discovered new exit (range 13) 137 | -11/Scrapyard | Entered Materials 309 | -10/Materials | Build established: Mutant 419 | -10/Materials | Discovered new exit (range 15) 535 | -10/Materials | Discovered new exit (range 10) 569 | -10/Materials | Prayed at D.C.S.S. Altar Unit 637 | -10/Materials | Derelicts attacked the area 775 | -10/Materials | Discovered new exit (range 4) 1023 | -10/Materials | Core integrity permanently improved by X0-1V1 (+200) 1078 | -10/Materials | X0-1V1 sent hostile S-10 Pest (x4) 1084 | -10/Materials | Discovered new exit (range 6) 1084 | -10/Materials | X0-1V1 whisked you away to safety 1093 | -10/Materials | X0-1V1 vaporized surrounding terrain (radius 16) 1101 | -10/Materials | X0-1V1 added 0b10 threat records associated with you (considerable) 1116 | -10/Materials | X0-1V1 announced a LAN party 1122 | -10/Materials | X0-1V1 upgraded hostiles (x2) 1135 | -10/Materials | X0-1V1 foreshadows a heat wave 1174 | -10/Materials | X0-1V1 vaporized surrounding terrain (radius 18) 1277 | -10/Materials | Ambient heat levels rising (+10) 1279 | -10/Materials | Discovered new exit (range 10) 1414 | -10/Materials | X0-1V1 caused items to flee you 1432 | -10/Materials | Identified exit to Materials 1432 | -10/Materials | Learned location of 1 exit from Materials 1453 | -10/Materials | Ambient heat levels rising (+10) 1496 | -10/Materials | Learned location of 2 exits from Subcaves 1550 | -10/Materials | Learned 4 Recycling zone layouts 1578 | -10/Materials | Ambient heat levels falling (-10) 1592 | -10/Materials | Loaded intel: 10 trap records 1624 | -10/Materials | Learned location of 1 exit from Recycling 1631 | -10/Materials | Items stopped fleeing you 1647 | -10/Materials | Build established: Scavenger-Mutant 1665 | -10/Materials | Identified exit to Mines 1665 | -10/Materials | Identified exit to Subcaves 1714 | -10/Materials | X0-1V1 vaporized surrounding terrain (radius 23) 1717 | -10/Materials | Learned location of 2 exits from Mines 1746 | -10/Materials | Entered Mines 1778 | -10/Mines | Energy generation permanently improved by X0-1V1 (+20; -200 max core) 1799 | -10/Mines | X0-1V1 put everyone to sleep 1812 | -10/Mines | X0-1V1 activates XOMVISION 1865 | -10/Mines | X0-1V1 added 0b10 threat records associated with you (considerable) 1867 | -10/Mines | X0-1V1 vaporized surrounding terrain (radius 21) 1875 | -10/Mines | Received a Mining Laser from a helpful Derelict 1886 | -10/Mines | X0-1V1 sent you into danger 1941 | -10/Mines | X0-1V1 added 0b10 threat records associated with you (considerable) 2061 | -10/Mines | X0-1V1 added 0b10 threat records associated with you (major) 2086 | -10/Mines | Entered Materials 2086 | -9/Materials | Accompanied by 1 ally 2086 | -9/Materials | Evolved 2 slots: Utility x1, Weapon x1 2087 | -9/Materials | Identified exit to Materials 2100 | -9/Materials | Self-destructed Last Messages --------------- 02039_ U-05 Engineer builds a Wall. 02061_ X0-1V1: "So many more threat records for the threat god!" 02063_ Seismic Survey Station disabled. 02067_ U-05 Engineer builds a Wall. 02071_ Seismic Survey Station disabled. 02072_ Imp. Heat Sink destroyed. 02075_ U-05 Engineer builds a Wall. 02076_ Y-45 Defender suffers critical hit (Burn). 02078_ Y-45 Defender destroyed. 02079_ U-05 Engineer builds a Wall. PARAMETERS=UTILITY+1,WEAPON+1 02086_ X0-1V1 is interested. LOCATION=MATERIALS GOAL=ESCAPE Loading 1 Materials exit... 02100_ Connecting with Recycling Unit... >>Force(Tunnel) DISCOVERED[-7/Storage] 02100_ ALERT: Suspicious activity at Recycling Unit M002. Dispatching Investigation squad. Map ----- +----------------------------------------------------+ | | | | | | | | | | | | | | | | | | | | | | | | | ??????????????????????????????????????????????? | | ??????????????????????????????????????????????? | | ??????????????????????????????????????????????? | | ??????????????????????????????????????????????? | | ????????????????#######################???????? | | ????????????????# #???????? | | ????????????????# #???????? | | ????????????????# #???????? | | ????????????????####g######+####### #???????? | | ????????????????#! #???????????????????? | | ????????????????# #???????????????????? | | ????????????????# """ #???????????????????? | | ????????????????# """ #???????????????????? | | ?????Y??????????# """ @"" #???????????????????? | | ????????????????# """ Y" #???????????????????? | | ????????????????# """ "" #???????????????????? | | ?????u??????????# #???????????????????? | | ????????????????###########???????????????????? | | ??????????????????????????????????????????????? | | ??????????????????????????????????????????????? | | ??????????????????????????????????????????????? | | ??????????????????????????????????????????????? | | ??????????????????????????????????????????????? | | ??????????????????????????????????????????????? | | ??????????????????????????????????????????????? | | ??????????????????????????????????????????????? | | ??????????????????????????????????????????????? | | ??????????????????????????????????????????????? | | ??????????????????????????????????????????????? | | ??????????????????????????????????????????????? | | ??????????????????????????????????????????????? | | ??????????????????????????????????????????????? | | ??????????????????????????????????????????????? | | ??????????????????????????????????????????????? | | ??????????????????????????????????????????????? | | ??????????????????????????????????????????????? | | ??????????????????????????????????????????????? | | ??????????????????????????????????????????????? | +----------------------------------------------------+ Best States ------------- Heat Dissipation 39 Energy Generation 34 Energy Capacity 1080 Matter Stores 300 Matter Capacity 300 Sight Range 22 Terrain Scan Density 10 Armor Coverage 150 Evasion (%) 40 Recoil Reduction 2 Item Schematics ----------------- None Robot Schematics ------------------ None Fabricated ------------ Nothing Repaired ---------- Nothing Studied --------- None Alien Tech Used ----------------- None Achievements -------------- None Challenges ------------ None Game ------ Seed NeutrinoPointDetector Manual? 0 Play Time 00:12:33 Cumulative 646.4 hours Start 2026.09.10 @ 17:16:46 End 2026.09.10 @ 17:28:57 Sessions 1 Manual Loads 0 Difficulty Rogue Special Mode None Game No. 349 Rogue 349 Adventurer 0 Explorer 0 Win Type - Total 21 Types 10/2/3/1/1/0/1/1/0/2 Lore% 86 Gallery% 85 Achievement% 77 Wizard Run 0 Options --------- Layout 0 ASCII 0 Keyboard 0 Movement Mouse Keybinds 0 Fullscreen 1 Font 18/SmallcapsGlow Map View 76x50 Zoom Use 0% Tactical HUD 1 Map Filters NONE Filters NONE Steam 1 RUN: fc837f0d-36e3-468e-84fc-23cd6bf27458